bitfinex-derivatives/quotes_SOLF0:USTF0_20241120
["timestamp","ask_amount","ask_price","bid_price","bid_amount"]
[1732082118603,6.69675924,234.81,234.74,6.69675924]
[1732082118804,6.69675924,234.79,234.72,6.69675924]
[1732082119004,8.82405924,234.79,234.73,2.1277]
[1732082119409,8.82405924,234.79,234.72,6.69675924]
[1732082120006,2.1273,234.79,234.72,6.69675924]
[1732082120211,2.1273,234.79,234.74,2.1277]
[1732082121212,2.1273,234.79,234.72,6.69675924]
[1732082121512,2.1273,234.79,234.72,8.82455924]
[1732082121714,2.1274,234.78,234.72,8.82455924]
[1732082122613,2.1274,234.78,234.72,6.69675924]
[1732082122811,3.38822393,234.82,234.73,2.1278]
[1732082123007,2.1273,234.79,234.73,2.1278]
[1732082123207,2.1273,234.79,234.74,6.69675924]
[1732082124916,2.1273,234.79,234.74,8.82445924]
[1732082126309,6.69675924,234.81,234.74,6.69675924]
[1732082126514,2.1274,234.78,234.74,6.69675924]
[1732082130620,3.38822393,234.82,234.74,6.69675924]
[1732082130621,2.09092393,234.82,234.74,6.69675924]
[1732082130821,6.69675924,234.83,234.74,6.69675924]
[1732082131527,6.69675924,234.81,234.74,6.69675924]
[1732082131716,2.1272,234.8,234.74,8.82445924]
[1732082132421,2.16660094,234.81,234.78,6.69675924]
[1732082132618,2.1271,234.82,234.8,6.69675924]
[1732082132824,2.0947905,234.82,234.8,6.69675924]
[1732082133020,2.1269,234.84,234.8,6.69675924]
[1732082134217,2.461,234.93,234.82,6.69675924]
[1732082134418,6.69675924,234.91,234.82,6.69675924]
[1732082134722,6.69675924,234.91,234.84,6.69675924]
[1732082134723,2.1265,234.88,234.84,6.69675924]
[1732082136724,6.69675924,234.91,234.84,6.69675924]
[1732082136925,2.1267,234.85,234.82,2.14]
[1732082138326,2.127,234.83,234.76,2.1275]
[1732082138526,6.69675924,234.86,234.79,2.14]
[1732082138829,6.69675924,234.88,234.8,6.69675924]
[1732082139031,2.1267,234.86,234.8,8.82395924]
[1732082139531,6.69675924,234.88,234.8,8.82395924]
[1732082139730,2.461,234.93,234.79,2.14]
[1732082139731,6.69675924,234.86,234.79,2.14]
[1732082140722,2.14,234.89,234.75,6.69675924]
[1732082140723,6.69675924,234.84,234.75,6.69675924]
[1732082140922,2.1272,234.8,234.76,2.14]
[1732082141134,2.15987342,234.79,234.76,2.14]
[1732082142334,6.69675924,234.82,234.76,2.14]
[1732082142533,8.8181015,234.82,234.76,2.14]
[1732082142831,2.1273,234.79,234.76,2.14]
[1732082144431,2.1273,234.79,234.75,6.69675924]
[1732082145234,2.1272,234.8,234.75,6.69675924]
[1732082145633,8.8181015,234.82,234.75,6.69675924]
[1732082145835,8.8181015,234.82,234.74,2.1277]
[1732082146035,8.8181015,234.82,234.75,6.69675924]
[1732082146432,2.1271,234.81,234.75,8.82435924]
[1732082146638,8.8181015,234.82,234.75,8.82435924]
[1732082147130,4.24844226,234.82,234.75,8.82435924]
[1732082147337,4.24844226,234.82,234.77,6.69675924]
[1732082147637,2.1271,234.81,234.77,6.69675924]
[1732082148338,4.28138005,234.81,234.77,6.69675924]
[1732082151728,1.2714,234.88,234.79,6.69675924]
[1732082151935,1.2714,234.88,234.81,6.69675924]
[1732082153233,2.1268,234.85,234.81,6.69675924]
[1732082154231,2.1268,234.84,234.81,6.69675924]
[1732082156039,2.127,234.82,234.79,6.69675924]
[1732082156236,2.11410437,234.81,234.79,6.69675924]
[1732082160042,2.11410437,234.81,234.62,5.22992483]
[1732082160239,2.1276,234.76,234.72,6.69675924]
[1732082160439,4.7391,234.85,234.74,6.69675924]
[1732082160440,6.69675924,234.83,234.74,6.69675924]
[1732082161035,2.1274,234.78,234.74,6.69675924]
[1732082161245,4.22511266,234.78,234.74,6.69675924]
[1732082162839,2.09771266,234.78,234.74,6.69675924]
[1732082163045,2.1275,234.77,234.74,6.69675924]
[1732082163246,2.12626582,234.76,234.74,6.69675924]
[1732082164944,2.1274,234.78,234.74,6.69675924]
[1732082165545,4.27431951,234.78,234.74,6.69675924]
[1732082166041,2.14691951,234.78,234.74,6.69675924]
[1732082166247,2.1275,234.77,234.74,6.69675924]
[1732082166446,2.15820452,234.76,234.74,6.69675924]
[1732082167745,2.1275,234.77,234.74,6.69675924]
[1732082167950,6.69675924,234.81,234.74,6.69675924]
[1732082168143,8.86326782,234.81,234.74,6.69675924]
[1732082168850,2.1275,234.77,234.74,6.69675924]
[1732082169247,8.86326782,234.81,234.72,8.83675924]
[1732082169743,2.1276,234.76,234.72,8.83675924]
[1732082170153,8.86326782,234.81,234.72,8.83675924]
[1732082170341,6.69675924,234.79,234.71,6.69675924]
[1732082170943,6.69675924,234.79,234.69,2.1281]
[1732082171142,8.80331491,234.79,234.71,6.69675924]
[1732082171750,2.10655567,234.79,234.71,6.69675924]
[1732082171951,6.69675924,234.79,234.71,6.69675924]
[1732082172153,8.80501821,234.79,234.71,6.69675924]
[1732082173048,6.69675924,234.77,234.67,2.14]
[1732082173253,6.69675924,234.77,234.69,6.69675924]
[1732082174145,6.69675924,234.71,234.55,5.23743239]
[1732082174343,6.69675924,234.71,234.56,2.5407]
[1732082174543,6.69675924,234.69,234.6,6.69675924]
[1732082174747,2.1286,234.65,234.6,6.69675924]
[1732082175053,4.23597408,234.65,234.6,6.69675924]
[1732082176149,2.10737408,234.65,234.56,2.5407]
[1732082176344,2.14,234.69,234.58,6.69675924]
[1732082176551,2.14,234.69,234.62,6.69675924]
[1732082176751,2.1285,234.66,234.62,6.69675924]
[1732082176953,4.28796444,234.66,234.62,6.69675924]
[1732082177154,2.15946444,234.66,234.62,6.69675924]
[1732082177351,8.83675924,234.69,234.62,6.69675924]
[1732082178353,2.1284,234.67,234.62,6.69675924]
[1732082178554,4.30618846,234.67,234.61,6.69675924]
[1732082178954,2.1285,234.66,234.61,6.69675924]
[1732082179755,4.268362,234.66,234.61,6.69675924]
[1732082179956,2.139862,234.66,234.61,2.1289]
[1732082180156,8.82515924,234.67,234.61,2.1289]
[1732082180656,2.1285,234.66,234.61,2.1289]
[1732082183162,8.82535924,234.65,234.59,8.82575924]
[1732082183852,8.82535924,234.65,234.59,2.129]
[1732082184251,8.82535924,234.65,234.6,2.129]
[1732082184953,2.11499808,234.67,234.57,6.69675924]
[1732082185156,6.69675924,234.66,234.59,6.69675924]
[1732082185358,6.69675924,234.64,234.57,6.69675924]
[1732082185556,6.69675924,234.62,234.56,2.5407]
[1732082185761,8.85968639,234.62,234.56,1.2615]
[1732082186161,8.85968639,234.62,234.57,2.1293]
[1732082187365,2.16292715,234.62,234.59,2.129]
[1732082187564,6.69675924,234.64,234.59,2.129]
[1732082187861,8.79997572,234.64,234.59,2.129]
[1732082188257,2.10321648,234.64,234.58,2.1291]
[1732082188464,2.10321648,234.64,234.54,2.14]
[1732082188465,3.5762,234.76,234.62,6.69675924]
[1732082188662,6.69675924,234.71,234.64,6.69675924]
[1732082189163,6.69675924,234.69,234.64,2.1286]
[1732082190373,8.82495924,234.69,234.64,2.1286]
[1732082191070,6.69675924,234.69,234.61,6.69675924]
[1732082191669,2.1281,234.7,234.63,6.69675924]
[1732082193371,2.1281,234.7,234.65,2.1285]
[1732082195874,2.128,234.72,234.67,2.1283]
[1732082196170,1.0,234.76,234.69,6.69675924]
[1732082196669,6.69675924,234.75,234.69,6.69675924]
[1732082197169,3.1276,234.76,234.7,2.1281]
[1732082197370,6.69675924,234.75,234.7,2.1281]
[1732082198072,2.1277,234.75,234.7,2.1281]
[1732082201378,1.0,234.76,234.7,6.69675924]
[1732082202276,1.0,234.76,234.73,2.1278]
[1732082203873,1.0,234.76,234.71,8.82465924]
[1732082205176,1.0,234.76,234.72,2.1279]
[1732082205473,7.69675924,234.76,234.67,2.14]
[1732082205679,7.69675924,234.76,234.68,6.69675924]
[1732082206371,6.69675924,234.74,234.66,2.14]
[1732082206677,6.69675924,234.74,234.66,8.83675924]
[1732082206872,6.69675924,234.74,234.66,6.69675924]
[1732082207177,2.1279,234.73,234.68,2.1283]
[1732082209580,2.1279,234.73,234.68,8.82505924]
[1732082209877,7.69675924,234.76,234.69,2.1281]
[1732082210078,1.0,234.76,234.7,6.69675924]
[1732082210280,7.69675924,234.76,234.69,2.1281]
[1732082211375,2.1278,234.74,234.69,2.1281]
[1732082212182,2.1278,234.73,234.68,8.82505924]
[1732082213077,2.1279,234.72,234.68,2.1283]
[1732082214181,2.1279,234.72,234.66,8.82515924]
[1732082214581,2.128,234.71,234.66,8.82515924]
[1732082214783,6.69675924,234.74,234.67,2.1283]
[1732082216282,2.1279,234.72,234.67,2.1283]
[1732082217278,1.0,234.76,234.68,6.69675924]
[1732082217481,2.1278,234.74,234.7,6.69675924]
[1732082217677,1.0,234.76,234.72,6.69675924]
[1732082217879,1.0,234.76,234.66,2.14]
[1732082218085,6.69675924,234.8,234.72,6.69675924]
[1732082218280,2.4756,234.84,234.65,1.2595]
[1732082218281,6.69675924,234.82,234.74,6.69675924]
[1732082218581,8.83890352,234.82,234.74,6.69675924]
[1732082219387,2.1273,234.79,234.74,8.82445924]
[1732082221188,2.1272,234.8,234.74,8.82445924]
[1732082221383,2.14214428,234.82,234.76,6.69675924]
[1732082221584,2.4756,234.84,234.76,6.69675924]
[1732082221585,9.17235924,234.84,234.76,6.69675924]
[1732082221785,12.78,234.93,234.76,6.69675924]
[1732082222088,6.69675924,234.85,234.76,8.82425924]
[1732082222485,2.1265,234.88,234.76,8.82425924]
[1732082222679,6.69675924,234.84,234.76,8.82425924]
[1732082224386,2.127,234.82,234.76,8.82425924]
[1732082224689,4.29086125,234.82,234.76,8.82425924]
[1732082224888,2.127,234.82,234.76,8.82425924]
[1732082225289,2.1271,234.81,234.76,8.82425924]
[1732082225687,6.69675924,234.84,234.76,6.69675924]
[1732082225886,2.1271,234.81,234.76,6.69675924]
[1732082226086,4.24305524,234.81,234.76,6.69675924]
[1732082226289,2.1273,234.8,234.74,8.82445924]
[1732082226784,2.1273,234.79,234.74,8.82445924]
[1732082227395,2.15108388,234.79,234.72,2.14]
[1732082227690,6.69675924,234.82,234.74,6.69675924]
[1732082227890,6.69675924,234.82,234.72,2.14]
[1732082227891,8.7890843,234.82,234.76,6.69675924]
[1732082228189,2.1272,234.81,234.76,8.82435924]
[1732082228394,2.1280913,234.8,234.76,6.69675924]
[1732082228587,6.69675924,234.84,234.76,6.69675924]
[1732082229194,2.127,234.82,234.76,6.69675924]
[1732082229491,2.14129075,234.82,234.76,6.69675924]
[1732082229695,6.69675924,234.84,234.76,8.82425924]
[1732082229696,2.1271,234.81,234.76,8.82425924]
[1732082229994,2.1129758,234.8,234.76,8.82425924]
[1732082230791,2.1129758,234.8,234.76,6.69675924]
[1732082231193,2.1129758,234.8,234.77,6.69675924]
[1732082231595,6.69675924,234.86,234.77,6.69675924]
[1732082231793,6.69675924,234.86,234.79,6.69675924]
[1732082232000,6.69675924,234.86,234.77,6.69675924]
[1732082233295,2.127,234.82,234.77,6.69675924]
[1732082233593,4.24508527,234.82,234.77,6.69675924]
[1732082234197,2.11808527,234.82,234.77,6.69675924]
[1732082234398,2.1269,234.84,234.79,6.69675924]
[1732082234599,6.69675924,234.86,234.79,6.69675924]
[1732082234902,2.127,234.83,234.79,6.69675924]
[1732082235497,2.127,234.83,234.78,2.1273]
[1732082235994,6.69675924,234.86,234.77,8.81675924]
[1732082236200,2.1272,234.81,234.77,2.12]
[1732082236400,2.14737521,234.8,234.77,2.12]
[1732082238206,2.14737521,234.8,234.77,8.81675924]
[1732082245206,2.14737521,234.8,234.77,10.94425924]
[1732082247713,2.14737521,234.8,234.77,8.81675924]
[1732082247915,2.1272,234.8,234.77,2.12]
[1732082248114,4.2996936,234.8,234.77,2.12]
[1732082248316,2.1272,234.8,234.77,2.12]
[1732082248919,2.14992777,234.8,234.77,2.12]
[1732082249113,2.1271,234.81,234.77,2.12]
[1732082249723,4.25510059,234.81,234.77,2.12]
[1732082250113,4.25510059,234.81,234.76,2.1275]
[1732082252821,4.25510059,234.81,234.77,6.69675924]
[1732082253836,4.25510059,234.81,234.77,8.82425924]
[1732082256019,4.25510059,234.81,234.77,6.69675924]
[1732082256722,4.25510059,234.81,234.77,8.82425924]
[1732082256919,2.1268,234.85,234.79,6.69675924]
[1732082257114,1.0,234.87,234.81,6.69675924]
[1732082257318,1.0,234.87,234.82,2.127]
[1732082257517,1.0,234.87,234.81,6.69675924]
[1732082257918,3.6475,234.92,234.84,2.1268]
[1732082257919,10.34425924,234.92,234.84,2.1268]
[1732082258121,3.6475,234.92,234.87,6.69675924]
[1732082258320,1.1969,234.92,234.87,6.69675924]
[1732082258524,3.3231,234.92,234.87,6.69675924]
[1732082258823,7.89365924,234.92,234.85,6.69675924]
[1732082259624,7.89365924,234.92,234.83,2.12]
[1732082259824,7.89365924,234.92,234.85,6.69675924]
[1732082260123,7.89365924,234.92,234.83,2.12]
[1732082260326,6.69675924,234.9,234.83,2.12]
[1732082260527,1.1969,234.92,234.86,6.69675924]
[1732082260724,7.89365924,234.92,234.86,6.69675924]
[1732082261025,2.1264,234.89,234.84,6.69675924]
[1732082261222,6.69675924,234.88,234.8,6.69675924]
[1732082262130,6.69675924,234.88,234.82,6.69675924]
[1732082262131,2.1268,234.85,234.82,6.69675924]
[1732082262326,6.69675924,234.88,234.82,6.69675924]
[1732082263132,2.1266,234.86,234.82,6.69675924]
[1732082263326,2.1266,234.86,234.8,8.82395924]
[1732082264927,2.1268,234.84,234.8,6.69675924]
[1732082265127,3.16,234.91,234.79,2.16]
[1732082265128,6.69675924,234.86,234.79,2.16]
[1732082265324,6.69675924,234.86,234.78,6.69675924]
[1732082265527,2.1269,234.84,234.78,6.69675924]
[1732082266330,2.1269,234.83,234.78,8.82415924]
[1732082266531,2.17234072,234.82,234.78,8.82415924]
[1732082269339,2.1269,234.83,234.78,8.82415924]
[1732082273540,6.69675924,234.86,234.78,8.82415924]
[1732082273541,2.1268,234.85,234.79,2.1273]
[1732082273739,6.69675924,234.86,234.79,2.1273]
[1732082274944,2.1268,234.84,234.8,2.1272]
[1732082275138,2.1268,234.84,234.78,6.69675924]
[1732082275441,2.1268,234.84,234.79,2.1273]
[1732082280248,2.1268,234.84,234.78,6.69675924]
[1732082280442,2.1268,234.84,234.8,2.1272]
[1732082281448,2.1268,234.84,234.78,8.82405924]
[1732082281642,2.1268,234.84,234.78,6.69675924]
[1732082281948,2.1268,234.84,234.76,2.16]
[1732082282139,2.1268,234.84,234.79,2.1272]
[1732082288049,2.1268,234.84,234.8,2.1272]
[1732082288254,1.0,234.91,234.82,6.69675924]
[1732082288556,6.69675924,234.89,234.82,6.69675924]
[1732082288755,2.1267,234.86,234.8,6.69675924]
[1732082290261,2.1267,234.86,234.81,2.1271]
[1732082293054,2.1267,234.85,234.81,2.1271]
[1732082293259,6.69675924,234.89,234.81,2.1271]
[1732082293658,6.69675924,234.89,234.8,6.69675924]
[1732082293859,2.1267,234.86,234.81,2.1271]
[1732082295762,2.1266,234.87,234.82,2.127]
[1732082296356,1.0,234.91,234.8,6.69675924]
[1732082296557,2.1265,234.88,234.83,2.1269]
[1732082296756,6.69675924,234.89,234.83,2.1269]
[1732082298367,1.1866,234.97,234.83,2.1269]
[1732082298368,12.78,235.08,234.91,2.1261]
[1732082298563,6.69675924,234.99,234.91,8.82285924]
[1732082299262,8.78058544,234.99,234.91,8.82285924]
[1732082300167,2.0838262,234.99,234.91,8.82285924]
[1732082300361,2.1257,234.97,234.91,8.82285924]
[1732082301267,2.1257,234.97,234.91,6.69675924]
[1732082301567,2.1257,234.96,234.91,6.69675924]
[1732082302067,2.126,234.93,234.9,2.12]
[1732082303473,2.126,234.93,234.89,6.69675924]
[1732082305673,2.1258,234.96,234.91,6.69675924]
[1732082306772,2.1258,234.96,234.93,6.69675924]
[1732082308578,8.86167397,234.99,234.9,2.1263]
[1732082308778,2.1259,234.95,234.9,8.82305924]
[1732082309172,6.69675924,234.97,234.88,4.2464]
[1732082309173,2.126,234.94,234.88,4.2464]
[1732082309476,6.69675924,234.97,234.9,6.69675924]
[1732082309676,2.1259,234.95,234.9,6.69675924]
[1732082310269,8.87391962,234.97,234.9,6.69675924]
[1732082310468,2.1259,234.94,234.9,6.69675924]
[1732082310870,2.126,234.93,234.9,6.69675924]
[1732082312080,8.87391962,234.97,234.9,6.69675924]
[1732082312278,2.126,234.93,234.9,6.69675924]
[1732082312484,8.87391962,234.97,234.9,6.69675924]
[1732082313182,2.1258,234.95,234.9,6.69675924]
[1732082313377,8.87391962,234.97,234.9,6.69675924]
[1732082315885,2.126,234.93,234.9,6.69675924]
[1732082317984,2.126,234.93,234.88,10.94325924]
[1732082319086,8.87391962,234.97,234.88,10.94325924]
[1732082319280,2.1261,234.92,234.88,10.94325924]
[1732082319582,8.87391962,234.97,234.88,10.94325924]
[1732082319788,8.87391962,234.97,234.9,6.69675924]
[1732082321680,1.2083,235.03,234.95,6.69675924]
[1732082321880,3.31396645,235.03,234.97,6.69675924]
[1732082322079,2.1253,235.01,234.97,6.69675924]
[1732082322293,2.14460511,235.01,234.97,6.69675924]
[1732082322485,1.2083,235.03,234.97,6.69675924]
[1732082322888,5.46417444,235.03,234.97,8.82235924]
[1732082323093,3.3334,235.03,234.97,8.82235924]
[1732082323596,5.4988575,235.03,234.97,8.82235924]
[1732082324295,4.2905575,235.03,234.97,8.82235924]
[1732082324687,4.2905575,235.03,234.97,2.1256]
[1732082324887,4.2905575,235.03,234.98,6.69675924]
[1732082326395,2.1654575,235.03,234.98,6.69675924]
[1732082326600,6.69675924,235.07,235.0,6.69675924]
[1732082326794,8.77219946,235.07,235.0,6.69675924]
[1732082327800,2.1251,235.04,235.0,6.69675924]
[1732082328099,2.07544022,235.07,235.02,6.69675924]
[1732082328303,2.1247,235.08,235.02,6.69675924]
[1732082328501,4.22032712,235.08,235.02,6.69675924]
[1732082329404,4.22032712,235.08,235.03,6.69675924]
[1732082329902,4.22032712,235.08,234.99,2.12]
[1732082329903,2.1248,235.07,235.01,6.69675924]
[1732082330399,2.1248,235.07,234.99,8.81675924]
[1732082330996,8.79238636,235.08,234.99,8.81675924]
[1732082330997,2.09562712,235.08,235.01,6.69675924]
[1732082331196,6.69675924,235.09,235.01,6.69675924]
[1732082331396,6.69675924,235.05,234.92,2.1261]
[1732082331598,6.69675924,235.05,234.98,6.69675924]
[1732082332305,10.98880322,235.05,235.0,2.1254]
[1732082332602,10.98880322,235.05,234.98,6.69675924]
[1732082332801,4.29204398,235.05,234.98,6.69675924]
[1732082333101,2.1247,235.08,235.01,6.69675924]
[1732082333299,4.28248726,235.08,235.02,2.12]
[1732082333499,2.1247,235.08,235.02,2.12]
[1732082333995,6.69675924,235.07,235.02,2.12]
[1732082334395,6.69675924,235.07,235.02,4.2451]
[1732082336701,2.0833588,235.08,235.04,2.1249]
[1732082337003,8.82135924,235.09,235.04,2.1249]
[1732082337202,2.1246,235.09,235.04,2.1249]
[1732082337399,4.25456045,235.09,235.04,2.1249]
[1732082340899,10.95131969,235.09,235.04,2.1249]
[1732082342999,8.82671969,235.09,235.02,2.12]
[1732082343198,6.69675924,235.07,235.02,2.12]
[1732082343802,6.69675924,235.07,235.02,4.2452]
[1732082343803,8.82155924,235.07,235.02,4.2452]
[1732082344006,10.8963236,235.07,235.02,4.2452]
[1732082344305,3.7529,235.19,235.08,2.1247]
[1732082344306,2.1243,235.13,235.08,2.1247]
[1732082344701,6.69675924,235.14,235.07,2.12]
[1732082345304,6.69675924,235.15,235.09,2.1245]
[1732082345699,3.7529,235.19,235.09,2.1245]
[1732082346101,6.69675924,235.15,235.09,2.1245]
[1732082346304,2.1241,235.14,235.09,2.1245]
[1732082349402,2.1242,235.13,235.07,10.94145924]
[1732082349607,6.69675924,235.15,235.07,10.94145924]
[1732082351211,2.1243,235.12,235.07,10.94145924]
[1732082351602,6.69675924,235.15,235.08,2.1247]
[1732082351805,3.7529,235.19,235.08,2.1247]
[1732082352009,8.82095924,235.14,235.08,2.1247]
[1732082352209,6.69675924,235.14,235.08,2.1247]
[1732082352709,3.7529,235.19,235.08,2.1247]
[1732082352909,6.69675924,235.15,235.08,2.1247]
[1732082353109,6.69675924,235.15,235.09,2.1245]
[1732082353305,2.1241,235.14,235.09,2.1245]
[1732082356113,2.1241,235.14,235.07,8.81675924]
[1732082356313,2.1241,235.14,235.08,2.1247]
[1732082357217,2.1242,235.13,235.08,2.1247]
[1732082358317,6.69675924,235.15,235.07,8.81675924]
[1732082358512,2.1243,235.12,235.07,8.81675924]
[1732082359118,6.69675924,235.15,235.07,10.94145924]
[1732082360313,2.1244,235.12,235.07,10.94145924]
[1732082362517,2.1244,235.12,235.08,2.1247]
[1732082365015,2.1242,235.14,235.1,2.1245]
[1732082365217,2.1242,235.14,235.07,8.81675924]
[1732082365720,2.1242,235.14,235.09,2.1246]
[1732082366017,2.1243,235.12,235.07,8.81675924]
[1732082367315,2.1243,235.12,235.08,2.1246]
[1732082368822,2.1244,235.11,235.07,4.2447]
[1732082369812,2.1243,235.12,235.08,2.1246]
[1732082370719,3.7529,235.19,235.09,2.1246]
[1732082370916,6.69675924,235.16,235.09,2.1246]
[1732082372022,2.1244,235.11,235.07,10.94145924]
[1732082372422,2.13119999,235.21,235.09,6.69675924]
[1732082372619,2.124,235.16,235.12,6.69675924]
[1732082373826,6.69675924,235.18,235.07,2.12]
[1732082374026,2.1242,235.14,235.1,6.69675924]
[1732082374324,2.0765372,235.13,235.1,6.69675924]
[1732082374626,2.124,235.16,235.1,6.69675924]
[1732082374826,6.69675924,235.18,235.1,6.69675924]
[1732082375423,2.1241,235.14,235.1,6.69675924]
[1732082375623,2.11365354,235.13,235.1,6.69675924]
[1732082376126,2.1246,235.09,235.03,2.12]
[1732082376327,2.11280314,235.08,235.04,2.12]
[1732082376826,2.11280314,235.08,235.05,6.69675924]
[1732082377318,6.69675924,235.12,235.05,6.69675924]
[1732082377521,8.86738916,235.12,235.05,6.69675924]
[1732082378321,2.1245,235.1,235.05,6.69675924]
[1732082379429,2.1245,235.1,235.04,4.245]
[1732082379631,8.86738916,235.12,235.04,2.12]
[1732082379830,2.1246,235.09,235.04,2.12]
[1732082380930,6.69675924,235.1,235.04,2.12]
[1732082381125,6.69675924,235.1,235.03,6.69675924]
[1732082381331,2.17062992,235.12,235.03,8.81675924]
[1732082381630,6.69675924,235.11,235.03,8.81675924]
[1732082381828,8.85256994,235.11,235.03,8.81675924]
[1732082382224,8.85256994,235.11,235.03,10.94185924]
[1732082382225,2.1246,235.09,235.03,10.94185924]
[1732082382427,2.1246,235.09,235.03,8.81675924]
[1732082383230,2.1246,235.09,235.04,2.125]
[1732082384031,2.1246,235.09,235.03,8.81675924]
[1732082384032,8.85256994,235.11,235.03,10.94175924]
[1732082384633,2.1246,235.09,235.03,8.81675924]
[1732082385832,8.85256994,235.11,235.03,8.81675924]
[1732082386030,2.1247,235.08,235.03,8.81675924]
[1732082386835,2.1558107,235.11,235.03,8.81675924]
[1732082387035,2.1245,235.1,235.04,2.125]
[1732082391037,2.1245,235.1,235.05,2.1249]
[1732082392432,10.93747921,235.11,235.06,2.1248]
[1732082393734,10.93747921,235.11,235.03,8.81675924]
[1732082393735,8.81307921,235.11,235.03,8.81675924]
[1732082394039,8.81307921,235.11,235.08,6.69675924]
[1732082394040,2.11631997,235.11,235.08,6.69675924]
[1732082394239,6.69675924,235.16,235.08,8.81675924]
[1732082394940,8.82075924,235.16,235.1,2.1245]
[1732082396641,3.6817,235.21,235.1,6.69675924]
[1732082396846,2.1238,235.18,235.12,2.1243]
[1732082397048,6.69675924,235.17,235.12,2.1243]
[1732082397248,3.6817,235.21,235.1,6.69675924]
[1732082397449,6.69675924,235.18,235.13,2.1242]
[1732082398746,3.6817,235.21,235.13,2.1242]
[1732082398949,6.69675924,235.19,235.13,2.1242]
[1732082399650,8.82045924,235.19,235.13,2.1242]
[1732082400351,3.6817,235.21,235.13,2.1242]
[1732082400550,8.82055924,235.18,235.13,2.1242]
[1732082400751,8.82055924,235.18,235.11,2.1243]
[1732082400951,6.69675924,235.16,235.11,2.1243]
[1732082401445,6.69675924,235.14,235.1,2.1245]
[1732082402244,6.69675924,235.14,235.08,2.12]
[1732082402852,6.69675924,235.14,235.06,6.69675924]
[1732082403152,8.82095924,235.14,235.09,2.1246]
[1732082403347,6.69675924,235.12,235.07,2.12]
[1732082403649,6.69675924,235.12,235.01,1.215]
[1732082403650,8.79650451,235.12,235.06,2.12]
[1732082403846,8.79650451,235.12,235.03,6.69675924]
[1732082403847,8.79650451,235.12,235.04,2.12]
[1732082404451,8.79650451,235.12,235.05,2.12]
[1732082405349,8.79650451,235.12,235.06,2.1248]
[1732082405350,2.1244,235.11,235.06,2.1248]
[1732082407549,10.92080451,235.12,235.06,2.1248]
[1732082407746,10.92080451,235.12,235.05,2.12]
[1732082408345,10.92080451,235.12,235.06,2.1248]
[1732082408545,2.1244,235.11,235.06,2.1248]
[1732082408945,6.69675924,235.1,235.01,1.215]
[1732082409250,8.82125924,235.1,235.02,8.81675924]
[1732082409452,6.69675924,235.1,235.02,8.81675924]
[1732082410250,8.82125924,235.1,235.05,2.1249]
[1732082411354,8.82125924,235.1,235.04,2.125]
[1732082411556,8.82125924,235.1,235.02,8.81675924]
[1732082412252,8.82125924,235.1,235.01,2.12]
[1732082412548,8.82125924,235.1,235.02,6.69675924]
[1732082413357,6.69675924,235.08,234.97,1.1887]
[1732082413560,6.69675924,235.08,235.0,2.12]
[1732082413754,6.69675924,235.08,235.02,2.1252]
[1732082413952,2.1248,235.07,235.02,2.1252]
[1732082416660,6.69675924,235.06,235.02,2.1252]
[1732082418560,8.82165924,235.06,235.0,2.1253]
[1732082418951,6.69675924,235.06,234.97,2.12]
[1732082419153,2.125,235.04,234.98,2.1255]
[1732082419561,2.125,235.04,234.99,2.1255]
[1732082419956,2.1251,235.03,234.97,6.69675924]
[1732082420161,6.69675924,235.06,234.99,2.1255]
[1732082421262,2.125,235.05,234.99,8.82225924]
[1732082422363,4.2448,235.07,235.03,6.69675924]
[1732082422562,2.1248,235.07,235.03,6.69675924]
[1732082426057,6.69675924,235.09,235.03,6.69675924]
[1732082426258,2.1248,235.06,235.03,6.69675924]
[1732082428559,2.1248,235.06,235.01,8.82205924]
[1732082431160,6.69675924,235.07,234.86,3.8139]
[1732082431367,6.69675924,235.03,234.95,6.69675924]
[1732082431770,6.69675924,235.03,234.97,6.69675924]
[1732082431971,7.69675924,235.05,234.97,6.69675924]
[1732082432871,2.1251,235.04,235.0,6.69675924]
[1732082434373,2.1251,235.03,234.98,8.82235924]
[1732082439076,2.1251,235.03,235.0,6.69675924]
[1732082442576,1.0,235.05,235.0,6.69675924]
[1732082443574,2.1252,235.02,235.0,6.69675924]
[1732082443775,1.0,235.05,235.0,6.69675924]
[1732082444880,2.1252,235.03,235.0,6.69675924]